[Event "FIDE WSTC Open 50 2025"]
[Site "Prague"]
[Date "2025.02.18"]
[Round "2.22"]
[White "Mrva, Martin"]
[Black "Mitchell, Martin"]
[Result "1-0"]
[Annotator "TA"]
[ECO "B08"]
[WhiteElo "2394"]
[BlackElo "2143"]
[PlyCount "119"]
[EventDate "2025.02.17"]
[EventType "team-tourn"]
[EventCountry "CZE"]
[SourceTitle "playchess.com"]
[Source "ChessBase"]
[SourceQuality "1"]
[TimeControl "40/5400+30:1800+30"]

{[%evp 15,119,41,36,34,45,52,59,63,66,68,81,69,76,49,74,66,87,70,91,120,147,127,125,57,62,50,33,31,49,33,125,136,299,258,264,222,185,167,167,150,281,276,238,147,427,352,731,541,532,394,512,236,394,341,337,340,343,351,516,496,483,475,497,497,508,529,819,801,4802,4706,6207,780,5302,5302,2684,772,1634,665,2266,2266,2266,2030,29972,320,29973,29976,29977,29978,29978,29979,29979,468,29977,29978,29978,29979,29979,29980,29980,29980,29981,29982,29982,29982,29983,29984]} 1. e4 {[%emt 0:00:04]} d6 {[%emt 0:00:10]} 2. d4 {[%emt 0:00:09]} Nf6 {[%emt 0:00:05]} 3. Nc3 {[%emt 0:00:08]} g6 {[%emt 0:00:08]} 4. Nf3 {[%emt 0:00:18]} Bg7 {[%emt 0:03:29]} 5. Be2 {[%emt 0:00:28]} O-O {[%emt 0:00:14]} 6. O-O {[%emt 0:00:06]} Nc6 {[%emt 0:00:11]} 7. d5 {[%emt 0:00:26]} Nb8 {[%emt 0:00:11][%cal Bc6b8,Bb8a6,Ba6c5][%mdl 32]} 8. Be3 {[%emt 0:00:19]} c6 {[%emt 0:03:39]} 9. a4 {[%emt 0:01:26][%cal Ba2a4,Ba4a5][%mdl 32] B08: Pirc Defence: Classical System.} cxd5 {[%emt 0:11:23]} 10. exd5 {[%emt 0:00:19]} Bg4 {[%emt 0:00:25]} 11. a5 {[%emt 0:02:31] White is slightly better.} Na6 {[%emt 0:09:31]} 12. h3 $146 {[%emt 0:07:43]} ({Predecessor:} 12. Nb5 Nc7 13. Nxc7 Qxc7 14. h3 Bxf3 15. Bxf3 Nd7 16. c3 Rfc8 17. Be2 a6 18. Re1 {1-0 Pierrot,J (2406)-Romanelli,G (2027) Villa Ballester 70th op 2020 (2.2)}) 12... Bf5 {[%emt 0:06:20]} 13. Nd4 {[%emt 0:07:23]} Bd7 {[%emt 0:05:33]} 14. f4 {[%emt 0:21:00]} Nc5 {[%emt 0:02:10]} 15. Bf3 {[%emt 0:00:22]} Rc8 {[%emt 0:04:37]} 16. Ra3 {[%emt 0:03:18]} Qc7 {[%emt 0:08:48]} 17. Qd2 {[%emt 0:03:46]} Bf5 {[%emt 0:02:29]} 18. g4 {[%emt 0:01:19]} Bd7 {[%emt 0:03:09]} 19. f5 {[%emt 0:00:27]} (19. Rf2 $16) 19... gxf5 $14 {[%emt 0:04:40]} 20. gxf5 {[%emt 0:07:17]} Kh8 {[%emt 0:00:33]} 21. Kh1 {[%emt 0:00:11]} Rg8 {[%emt 0:02:25]} 22. Rg1 {[%emt 0:00:27]} Ne8 {[%emt 0:02:04]} (22... Rcf8 $14) 23. Raa1 {[%emt 0:00:50] White is more active.} e5 $2 {[%emt 0:04:49]} (23... Be5 $16 {might work better.}) 24. fxe6 {[%emt 0:11:22]} fxe6 {[%emt 0:00:11]} 25. dxe6 {[%emt 0:14:09]} Nxe6 {[%emt 0:01:28]} 26. Nd5 {[%emt 0:00:21]} Qd8 {[%emt 0:00:34]} 27. Nf5 {[%emt 0:03:47][%cal Oa1f1] Dodges Qh4} Bc6 {[%emt 0:05:15]} (27... Rf8 $16) 28. Raf1 $18 {[%emt 0:01:05]} (28. Bxa7 Rf8 29. Nxg7 Qh4 $15) 28... Rf8 {[%emt 0:04:14]} 29. Bg2 {[%emt 0:04:45]} Rf7 $2 {[%emt 0:04:21][%mdl 8192] This move loses the game for Black.} (29... Be5 $16) 30. c4 {[%emt 0:04:04]} ({Don't do} 30. Bxa7 N8c7 31. c4 Qf8 $18) 30... a6 $2 {[%emt 0:01:16]} (30... Qd7 31. Bxa7 Rd8) 31. Qe2 {[%emt 0:00:38]} Be5 {[%emt 0:02:10]} 32. Qh5 {[%emt 0:00:45]} Qd7 {[%emt 0:06:40][%cal Oe8g7]} 33. Nb6 {[%emt 0:02:28]} (33. Nh6 $142 Rxf1 34. Rxf1) 33... Qc7 {[%emt 0:00:11]} (33... N6g7) 34. Nxc8 {[%emt 0:00:13]} N8g7 {[%emt 0:01:39]} 35. Nxg7 {[%emt 0:00:25]} Bxg2+ {[%emt 0:00:09]} 36. Kxg2 {[%emt 0:00:31]} Qc6+ {[%emt 0:00:35]} (36... Rxg7+ $142 37. Kh1 Qxc8 38. Rxg7 Nxg7) 37. Rf3 {[%emt 0:00:25]} Rxg7+ {[%emt 0:00:23]} 38. Kh1 {[%emt 0:00:15] [#]} Qxc8 {[%emt 0:00:34]} 39. Rxg7 {[%emt 0:00:20]} Bxg7 {[%emt 0:01:06]} 40. Bh6 {[%emt 0:01:06] Hoping for Bxg7+.} Bxb2 {[%emt 0:01:21]} 41. Qd5 {[%emt 0:33:06]} Bg7 {[%emt 0:08:45]} 42. Bxg7+ {[%emt 0:00:00]} Kxg7 {[%emt 0:01:12]} 43. Qxd6 {[%emt 0:00:00][%mdl 4096] Endgame KQR-KQN} (43. Qf5 $142 Qd7 44. Rg3+ Kh6 45. Qf6+ Kh5 46. Rg4 Qc6+ 47. Kh2 Qg2+ 48. Kxg2 (48. Rxg2 b5 49. Rg4 bxc4 50. Rh4#) 48... Nf4+ 49. Qxf4 h6 50. Qf7#) 43... h6 {[%emt 0:03:47]} 44. Qe7+ {[%emt 0:00:00]} Kg8 {[%emt 0:02:00]} 45. Qf7+ {[%emt 0:00:00]} Kh8 {[%emt 0:00:04]} 46. Qg6 {[%emt 0:00:00]} (46. Rg3 $142 Qc6+ 47. Kh2) 46... Qxc4 {[%emt 0:01:53]} 47. Qxh6+ {[%emt 0:00:00]} Kg8 {[%emt 0:00:04]} 48. Qg6+ {[%emt 0:00:00]} Ng7 {[%emt 0:00:42]} 49. Qg5 $2 {[%emt 0:00:00]} (49. Rg3 {mates} Qd4 50. Qg5 Kh8 51. Qc1 b5 52. Rg4 Qd5+ 53. Rg2 Qe5 54. Qg5) 49... Kh7 $2 {[%emt 0:02:15]} (49... Qe4 $18) 50. Rg3 {[%emt 0:00:00][%csl Gg3][%cal Rg5g7]} Qf1+ {[%emt 0:01:02]} 51. Kh2 {[%emt 0:00:00][%csl Gg3][%cal Rg5g7]} Qf2+ {[%emt 0:00:34]} 52. Rg2 {[%emt 0:00:00][%csl Gg2][%cal Rg5g7]} Qd4 {[%emt 0:00:21]} 53. Re2 {[%emt 0:00:00]} (53. Qxg7+ $142 Qxg7 54. Rxg7+ Kxg7 55. Kg3 Kf6 56. Kf4 Kg6 57. Ke5 Kh5 58. Kd6) 53... Kh8 {[%emt 0:03:45]} (53... b5 $18 54. Qe5 Qd7) 54. Qe5 {[%emt 0:00:00] White mates.} Qd7 {[%emt 0:00:48]} 55. Rg2 {[%emt 0:00:00]} Kh7 {[%emt 0:00:18] [#]} 56. Rxg7+ $1 {[%emt 0:00:00][%mdl 512]} Qxg7 {[%emt 0:00:08]} 57. Qxg7+ {[%emt 0:00:00]} Kxg7 {[%emt 0:00:03]} 58. Kg3 {[%emt 0:00:00]} Kg6 {[%emt 0:00:58]} 59. Kf4 {[%emt 0:00:00]} Kh5 {[%emt 0:00:07]} 60. Ke5 {[%emt 0:00:00] Weighted Error Value: White=0.69/Black=1.06  Loses game:     	---       	Black=2      Mistake:       	White=2     	Black=5      Inaccurate:     	White=2     	Black=2      OK:         	White=11    	Black=12     Best:        	White=1     	Black=2} 1-0

[Event "FIDE WSTC Open 50 2025"]
[Site "Prague"]
[Date "2025.02.18"]
[Round "2.23"]
[White "Minnican, Alan"]
[Black "Lipka, Juraj"]
[Result "0-1"]
[Annotator "TA"]
[ECO "D02"]
[WhiteElo "2039"]
[BlackElo "2348"]
[PlyCount "76"]
[EventDate "2025.02.17"]
[EventType "team-tourn"]
[EventCountry "CZE"]
[SourceTitle "playchess.com"]
[Source "ChessBase"]
[SourceQuality "1"]
[TimeControl "40/5400+30:1800+30"]

{[%evp 9,76,4,27,-6,-5,-31,-8,-23,-27,-16,21,-27,-31,-76,0,-21,-27,-73,-66,-64,-66,-79,-42,-78,-79,-91,-90,-74,-71,-89,-79,-79,-71,-108,-70,-98,-74,-166,-169,-179,-152,-147,-156,-164,-181,-167,-20,-38,-16,-15,-14,-16,0,-84,-77,-144,-79,-85,0,0,0,-14,-8,-20,0,-42,-33,-29998,-29999]} 1. d4 {[%emt 0:00:18]} d5 {[%emt 0:00:10]} 2. Nf3 {[%emt 0:00:17]} Nf6 {[%emt 0:00:19]} 3. Bf4 {[%emt 0:00:13]} c5 {[%emt 0:00:48]} 4. e3 {[%emt 0:00:15]} Nc6 {[%emt 0:00:19]} 5. Nbd2 {[%emt 0:00:25]} Nh5 {[%emt 0:01:49]} 6. Be5 {[%emt 0:05:59] D02: 1 d4 d5 2 Nf3 sidelines, including 2...Nf6 3 g3 and 2...Nf6 3 Bf4.} f6 {[%emt 0:01:06]} 7. Bg3 {[%emt 0:04:01]} (7. c4 $5) 7... g6 {[%emt 0:02:25]} 8. c3 {[%emt 0:07:20] The position is equal.} cxd4 {[%emt 0:04:16]} 9. cxd4 {[%emt 0:01:41]} Bg7 $146 {[%emt 0:10:52]} (9... e5 10. dxe5 Nxg3 11. hxg3 fxe5 12. Bb5 e4 13. Nd4 Bd7 14. N2b3 Bb4+ 15. Kf1 O-O {0-1 Le,T (2514)-Vokhidov,S (2536) Titled Tuesday intern op 31st May Early blitz 2022 (6)}) 10. a3 {[%emt 0:04:10]} (10. Bh4) 10... O-O $11 {[%emt 0:12:28]} 11. b4 {[%emt 0:09:07]} a6 {[%emt 0:07:22]} (11... e5 $17) 12. Be2 {[%emt 0:10:17]} (12. Bh4 $5) 12... e5 {[%emt 0:15:29]} 13. Nb3 {[%emt 0:02:32]} (13. dxe5 $11 {is more appropriate.} fxe5 14. e4) 13... Nxg3 {[%emt 0:03:54]} 14. hxg3 {[%emt 0:00:08]} e4 $1 {[%emt 0:03:37]} 15. Nfd2 {[%emt 0:02:11]} f5 {[%emt 0:01:47]} 16. Nc5 {[%emt 0:11:15]} Ne7 {[%emt 0:04:01]} 17. Qb3 {[%emt 0:02:46]} b6 {[%emt 0:02:00]} 18. Na4 {[%emt 0:00:34]} Qd6 {[%emt 0:02:37]} 19. Nc3 {[%emt 0:03:17]} Be6 {[%emt 0:01:34]} 20. Rc1 {[%emt 0:17:31]} g5 {[%emt 0:01:07]} 21. Qd1 {[%emt 0:07:15]} h6 {[%emt 0:06:11]} 22. Nf1 {[%emt 0:03:31]} Rfc8 {[%emt 0:03:36]} 23. f4 {[%emt 0:01:47]} (23. Nh2 $17 {was necessary.}) 23... exf3 $1 $19 {[%emt 0:01:17]} 24. gxf3 {[%emt 0:00:14]} f4 {[%emt 0:00:41]} 25. gxf4 {[%emt 0:03:20]} gxf4 {[%emt 0:00:05]} 26. e4 {[%emt 0:01:40]} dxe4 {[%emt 0:05:22]} 27. Nxe4 {[%emt 0:00:10]} Qxd4 {[%emt 0:03:34] Black attacks} (27... Qd8 $19 {Strongly threatening ...Nf5.} 28. Rxc8 Qxc8 (28... Rxc8 29. Bxa6 Ra8 30. Be2 $19)) 28. Rxc8+ $11 {[%emt 0:00:42]} Rxc8 {[%emt 0:00:09]} (28... Bxc8 {simplifies} 29. Qxd4 Bxd4 30. Rxh6 b5) 29. Qxd4 {[%emt 0:00:13]} Bxd4 {[%emt 0:00:20] A strong pair of Bishops.} 30. Rxh6 {[%emt 0:00:35]} Bb3 {[%emt 0:01:07]} 31. Rd6 {[%emt 0:01:28] [#]} (31. Bxa6 $11 Rc1+ 32. Ke2) 31... Nf5 $1 $17 {[%emt 0:01:12]} 32. Rd7 {[%emt 0:00:20] [#]} ({White should play} 32. Rg6+ Kh7 33. Rg4) 32... Be6 {[%emt 0:02:20]} ({Black should play} 32... Rc1+ $1 33. Kd2 Rc2+ 34. Kd3 Ra2) 33. Ra7 {[%emt 0:00:31][%cal Oe2d3]} Ne3 {[%emt 0:00:30]} (33... Rc1+ $17 34. Kd2 Bb2 35. Ra8+ Kg7 36. Ra7+ Kg8) 34. Nxe3 $11 {[%emt 0:00:34]} fxe3 {[%emt 0:01:24]} 35. Bd3 {[%emt 0:00:44]} Rc1+ {[%emt 0:01:08]} 36. Ke2 {[%emt 0:00:06]} Bb3 {[%emt 0:00:52]} 37. Ra8+ {[%emt 0:00:53]} Kg7 {[%emt 0:00:15] ( -> ...Bd1+)} 38. Ng5 $2 {[%emt 0:00:35][%mdl 8192]} (38. Ra7+ $15 Kf8 39. Bxa6 (39. Ra8+ $2 Ke7 $19)) 38... Bd1+ {[%emt 0:00:12] Weighted Error Value: White=0.41/Black=0.22 (precise)   Loses game:     	White=1     	---        Mistake:       	White=5     	Black=4      Inaccurate:     	White=6     	Black=3      OK:         	White=6     	Black=11     Best:        	White=4     	Black=2      Strong:       	---       	Black=2} 0-1

[Event "FIDE WSTC Open 50 2025"]
[Site "Prague"]
[Date "2025.02.18"]
[Round "2.24"]
[White "Motuz, Karol"]
[Black "Hulme, William"]
[Result "1-0"]
[Annotator "TA"]
[ECO "C77"]
[WhiteElo "2293"]
[BlackElo "1909"]
[PlyCount "81"]
[EventDate "2025.02.17"]
[EventType "team-tourn"]
[EventCountry "CZE"]
[SourceTitle "playchess.com"]
[Source "ChessBase"]
[SourceQuality "1"]
[TimeControl "40/5400+30:1800+30"]

{[%evp 12,81,8,7,62,12,10,7,4,0,16,0,11,0,1,12,26,34,37,27,27,24,27,14,14,8,16,13,67,77,138,143,147,102,147,160,152,156,219,157,190,126,271,258,319,288,297,297,297,277,269,201,265,245,252,232,252,237,255,258,258,258,252,252,260,242,366,359,344,293,378,377]} 1. e4 {[%emt 0:00:01]} e5 {[%emt 0:00:09]} 2. Nf3 {[%emt 0:00:07]} Nc6 {[%emt 0:00:05]} 3. Bb5 {[%emt 0:00:24]} a6 {[%emt 0:00:09]} 4. Ba4 {[%emt 0:00:11]} Nf6 {[%emt 0:00:43]} 5. d3 {[%emt 0:00:30]} Bc5 {[%emt 0:00:48]} 6. c3 {[%emt 0:00:39]} d6 {[%emt 0:00:50]} 7. O-O {[%emt 0:00:49]} h6 {[%emt 0:02:34] C78: Ruy Lopez: Archangelsk and Möller Defences.} (7... O-O $11) 8. Re1 {[%emt 0:01:57]} (8. d4 $14 Ba7 9. dxe5 Nxe4 10. Nd4) 8... b5 $11 {[%emt 0:02:13]} 9. Bc2 {[%emt 0:02:06]} O-O {[%emt 0:02:07] The position is equal.} 10. a4 {[%emt 0:03:40]} Rb8 $146 {[%emt 0:04:41]} (10... Bb7 11. Nbd2 Re8 12. Nf1 d5 13. exd5 Qxd5 14. Ng3 Qd7 15. Nh4 Ne7 16. h3 Qd6 {1-0 Firouzja,A (2728)-Warmerdam,M (2506) Titled Tuesday intern op 11th Aug blitz 2020 (2)}) 11. axb5 {[%emt 0:02:09]} axb5 {[%emt 0:00:12]} 12. h3 {[%emt 0:02:06]} Re8 {[%emt 0:03:07]} 13. Nbd2 {[%emt 0:13:14]} d5 {[%emt 0:07:52]} 14. exd5 {[%emt 0:13:03]} Qxd5 {[%emt 0:04:37]} 15. Qe2 {[%emt 0:04:47] A sharp opening} Bf5 {[%emt 0:07:58]} 16. Ne4 {[%emt 0:01:21]} Be7 {[%emt 0:05:54]} 17. Nh4 {[%emt 0:08:53]} Bh7 {[%emt 0:02:35]} 18. Qf3 {[%emt 0:04:50]} Qd7 {[%emt 0:11:37] and ...Nxe4 should not be overlooked} 19. Ng3 {[%emt 0:03:28]} (19. Bb3 {keeps more tension.} b4 20. Bc4 Rf8 21. Qg3) 19... Nd5 {[%emt 0:13:47]} (19... e4 $11 20. dxe4 Ne5) 20. Nhf5 $14 {[%emt 0:02:11] Qg4 is the strong threat.} Rbd8 {[%emt 0:10:46] [#]} ({Black should play} 20... Bf8) 21. Bxh6 $1 $16 {[%emt 0:11:10][%mdl 512] White is more active.} Bf8 {[%emt 0:04:10]} 22. Bg5 {[%emt 0:04:32]} f6 {[%emt 0:01:33]} 23. Bd2 $36 {[%emt 0:00:36][%mdl 2048] White is in control.} Nce7 {[%emt 0:00:57]} 24. Nxe7+ {[%emt 0:01:01]} Nxe7 {[%emt 0:01:29]} (24... Bxe7 $16 25. Bb3 Bg6) 25. Ne4 {[%emt 0:03:25]} Nd5 {[%emt 0:01:12]} 26. Rad1 {[%emt 0:02:14]} (26. d4 $18) 26... Bf5 {[%emt 0:02:14] Loses the game.} (26... Qf5 $16) 27. d4 $18 {[%emt 0:03:32]} exd4 {[%emt 0:02:41] [#]} 28. Nxf6+ $1 {[%emt 0:00:45][%mdl 512]} Nxf6 {[%emt 0:00:04]} 29. Bxf5 {[%emt 0:00:25]} Qd5 {[%emt 0:03:02]} 30. Qxd5+ {[%emt 0:02:03]} Nxd5 {[%emt 0:00:05]} 31. cxd4 {[%emt 0:01:19]} Bb4 {[%emt 0:01:05]} 32. Be6+ {[%emt 0:05:52]} Kf8 {[%emt 0:00:14]} 33. Bxd5 {[%emt 0:01:44]} Rxe1+ {[%emt 0:00:03]} 34. Bxe1 {[%emt 0:00:22]} Bxe1 {[%emt 0:00:05]} 35. Rxe1 {[%emt 0:00:24]} Rxd5 {[%emt 0:00:04][%mdl 4096] Endgame KR-KR. White is two pawns up.} 36. Re5 {[%emt 0:00:58]} Rxd4 {[%emt 0:00:32]} 37. Rxb5 {[%emt 0:00:06]} Rd1+ {[%emt 0:00:19]} 38. Kh2 {[%emt 0:00:08]} Ke7 {[%emt 0:01:28]} (38... c6 $142 39. Rb8+ Kf7) 39. g4 {[%emt 0:00:50]} Rd2 {[%emt 0:01:48]} 40. Kg3 {[%emt 0:00:27]} Rc2 {[%emt 0:00:40]} 41. h4 {[%emt 0:31:25] Weighted Error Value: White=0.14 (very precise) /Black=0.29 (precise)   Mistake:       	White=2     	Black=5      Inaccurate:     	White=1     	Black=2      OK:         	White=15    	Black=10     Best:        	White=1     	Black=1      Brilliant:      	White=1     	---} 1-0

[Event "FIDE WSTC Open 50 2025"]
[Site "Prague"]
[Date "2025.02.18"]
[Round "2.25"]
[White "Haba, Petr"]
[Black "Titscher, Libor"]
[Result "0-1"]
[Annotator "TA"]
[ECO "B30"]
[WhiteElo "2442"]
[BlackElo "2147"]
[PlyCount "34"]
[EventDate "2025.02.17"]
[EventType "team-tourn"]
[EventCountry "CZE"]
[SourceTitle "playchess.com"]
[Source "ChessBase"]
[SourceQuality "1"]
[TimeControl "40/5400+30:1800+30"]

{[%evp 9,34,63,70,75,68,80,65,0,0,10,39,-250,-246,-252,-247,-260,-268,-263,-260,-356,-362,-427,-451,-441,-444,-439,-437]} 1. e4 {[%emt 0:00:14]} c5 2. Nf3 {[%emt 0:00:16]} Nc6 {[%emt 0:00:16]} 3. c3 {[%emt 0:00:32]} e5 {[%emt 0:00:16]} 4. Bc4 {[%emt 0:00:21]} Qc7 {[%emt 0:00:08]} 5. O-O {[%emt 0:00:37]} Be7 {[%emt 0:00:07]} 6. Na3 {[%emt 0:02:50] B22: Sicilian: 2 c3.} Nf6 {[%emt 0:02:23][%cal Oa7a6]} 7. d4 {[%emt 0:05:32]} cxd4 {[%emt 0:12:34]} 8. cxd4 $146 {[%emt 0:11:56]} (8. Nb5 $14 Qd8 9. cxd4) (8. Nb5 Qb8 9. cxd4 a6 10. dxe5 Nxe5 11. Nxe5 Qxe5 12. Nc3 O-O 13. Nd5 Nxd5 14. Bxd5 {1-0 Burnett,A (2147)-Titscher,L (2147) WchT Seniors 50 2025 (7.1)}) 8... Bxa3 $11 {[%emt 0:04:41]} 9. bxa3 {[%emt 0:00:25]} Nxd4 {[%emt 0:00:33] [#]} 10. Nxe5 {[%emt 0:28:15][%mdl 8192] White does not recover from this.} Qxe5 $19 {[%emt 0:09:36]} 11. Bb2 {[%emt 0:01:09] [#]} Nf3+ {[%emt 0:01:05][%mdl 512]} 12. Qxf3 {[%emt 0:00:05]} Qxb2 {[%emt 0:00:10]} 13. e5 {[%emt 0:04:32] [#]} d5 $1 {[%emt 0:15:56]} (13... Qxe5 $2 {too greedy.} 14. Rfe1 $18 (14. Rae1 Qe6 $18)) 14. exf6 {[%emt 0:06:51]} dxc4 {[%emt 0:06:38]} 15. Rae1+ {[%emt 0:00:27]} Be6 {[%emt 0:02:04] Black is clearly winning.} 16. fxg7 {[%emt 0:00:21]} Qxg7 {[%emt 0:02:10]} 17. Qxb7 {[%emt 0:00:16] Rxe6+ would kill now.} O-O {[%emt 0:01:14] Weighted Error Value: White=0.58/Black=0.01 (flawless)   Loses game:     	White=1     	---        Mistake:       	White=1     	---        Inaccurate:     	White=1     	---        OK:         	White=6     	Black=3      Best:        	---       	Black=4      Strong:       	---       	Black=1      Brilliant:      	---       	Black=1} 0-1

[Event "FIDE WSTC Open 50 2025"]
[Site "Prague"]
[Date "2025.02.18"]
[Round "2.26"]
[White "Schulenburg, Bernd"]
[Black "Jirovsky, Milos"]
[Result "1-0"]
[Annotator "TA"]
[ECO "B31"]
[WhiteElo "2144"]
[BlackElo "2410"]
[PlyCount "59"]
[EventDate "2025.02.17"]
[EventType "team-tourn"]
[EventCountry "CZE"]
[SourceTitle "playchess.com"]
[Source "ChessBase"]
[SourceQuality "1"]
[TimeControl "40/5400+30:1800+30"]

{[%evp 15,59,0,32,20,5,0,37,-10,0,0,0,-1,-4,-30,-26,-70,-23,-31,23,20,12,4,139,140,137,137,172,120,153,61,299,313,595,530,676,123,586,565,1223,1222,1878,1731,3809,3603,29963,29953]} 1. e4 {[%emt 0:00:06]} c5 {[%emt 0:00:06]} 2. Nf3 {[%emt 0:00:07]} Nc6 {[%emt 0:00:08]} 3. Bb5 {[%emt 0:00:28]} g6 {[%emt 0:00:18]} 4. O-O {[%emt 0:00:40]} Bg7 {[%emt 0:00:17]} 5. Re1 {[%emt 0:01:05]} Nf6 {[%emt 0:01:09]} 6. h3 {[%emt 0:01:43]} O-O {[%emt 0:01:12]} 7. c3 {[%emt 0:01:26]} Qb6 {[%emt 0:08:03]} 8. Na3 {[%emt 0:02:44]} a6 {[%emt 0:03:21]} 9. Bxc6 {[%emt 0:01:41] B31: Sicilian: 2...Nc6 3 Bb5 g6.} Qxc6 {[%emt 0:01:21]} 10. d4 {[%emt 0:00:58]} cxd4 {[%emt 0:03:30]} 11. cxd4 {[%emt 0:00:21]} (11. e5 $14 {should be considered.} Nd5 12. c4) 11... d5 $146 {[%emt 0:00:53]} (11... Nxe4 $6 12. d5 Nxf2 13. Kxf2 $18) ({Predecessor:} 11... d6 12. Bg5 b5 13. Rc1 Qb6 14. e5 Nd5 15. Nc2 Bb7 16. Ne3 Rfe8 17. Ng4 Nc7 {0-1 Draghici Flutur,G (2204)-Saez Gabikagogeaskoa,O (1969) La Laguna op 4th 2010 (9)}) 12. e5 {[%emt 0:04:21]} Ne4 {[%emt 0:00:44]} 13. Ng5 {[%emt 0:07:01]} b5 {[%emt 0:05:56]} 14. Nxe4 {[%emt 0:15:30]} dxe4 {[%emt 0:00:23]} 15. d5 {[%emt 0:01:28]} Qc5 {[%emt 0:00:25]} (15... Qb7 $15 16. Bf4 Rd8) 16. Be3 $11 {[%emt 0:03:30]} (16. Rxe4 Bb7 17. Nc2 Rad8 $17 (17... Qxd5 18. Qxd5 Bxd5 19. Re1 $17) (17... Bxd5 18. Be3 $15)) 16... Qb4 {[%emt 0:00:37]} (16... Qc7 $15 17. d6 Qd7) 17. Nc2 {[%emt 0:00:19]} Qc4 {[%emt 0:03:05][%cal Of8d8]} 18. Bf4 {[%emt 0:03:11]} Bb7 {[%emt 0:02:16]} (18... e3 $1 $11 {remains equal.} 19. Bxe3 (19. Nxe3 $2 Qxf4 20. d6 Bxe5 $19) (19. fxe3 Qe4 $15) 19... Bb7) 19. Ne3 $16 {[%emt 0:00:32]} Qb4 {[%emt 0:00:42]} 20. Re2 $36 {[%emt 0:01:30][%mdl 2048] Black is under strong pressure.} Rac8 {[%emt 0:06:25]} 21. a3 {[%emt 0:02:26]} (21. d6 $18) 21... Qa5 {[%emt 0:02:37]} 22. Rc1 {[%emt 0:04:46]} (22. d6 $1 $16) 22... f6 $2 {[%emt 0:08:15] [#]} ({Black should play} 22... Rxc1 $1 $14 23. Qxc1 Rc8) 23. Rxc8 $1 $18 {[%emt 0:07:39]} Rxc8 $2 {[%emt 0:00:24]} (23... Bxc8 24. e6 b4) 24. d6 {[%emt 0:10:55]} fxe5 {[%emt 0:10:27] [#]} 25. Nd5 {[%emt 0:00:38]} Qd8 {[%emt 0:16:54][%mdl 8192]} (25... exf4 $2 26. Nxe7+ Kh8 27. Nxc8 $18) (25... Kf7 $16 {is a better chance.}) 26. Nxe7+ {[%emt 0:01:17]} Kh8 {[%emt 0:02:47]} 27. Bg5 {[%emt 0:01:10]} ({Inferior is} 27. d7 Rc7 28. Bg5 (28. Nxg6+ $2 hxg6 29. Be3 Rxd7 $19) 28... Rxd7 $19 (28... Qxd7 $2 {is the wrong capture.} 29. Rd2 $18)) 27... Qd7 {[%emt 0:01:24]} 28. Nxc8 {[%emt 0:00:06] Nb6 would now be deadly.} Bxc8 {[%emt 0:00:36]} 29. Rc2 {[%emt 0:00:29][%cal Oc2c8] Intending Rxc8+! and mate.} Qe8 {[%emt 0:01:56] [#]} 30. Rxc8 $1 {[%emt 0:00:46] Weighted Error Value: White=0.28 (precise) /Black=1.67  Loses game:     	---       	Black=2      Missed win:     	White=1     	---        Mistake:       	White=3     	Black=4      Inaccurate:     	White=2     	Black=3      OK:         	White=7     	Black=2      Best:        	White=1     	---        Strong:       	White=1     	---} 1-0